fUST/lending_fUST_20240610
["ID","MTS","AMOUNT","RATE_DAILY","PERIOD"]
[328947571,1718025050244,-500.0,0.00022088,2]
[328947572,1718025050254,-647.77,0.00022088,2]
[328947573,1718025050264,-500.0,0.00022088,2]
[328947574,1718025050277,-500.0,0.00022088,2]
[328947575,1718025050287,-653.31,0.00022088,2]
[328947576,1718025050297,-602.64,0.00022088,2]
[328947577,1718025050307,-500.0,0.00022088,2]
[328947578,1718025050317,-500.0,0.00022089,2]
[328947579,1718025050327,-486.00597211,0.00022089,2]
[328947580,1718025050336,-620.71959197,0.00022265,2]
[328947581,1718025050348,-1223.09,0.00022357,2]
[328947582,1718025050357,-1871.62,0.00022357,2]
[328947583,1718025050367,-1313.82,0.00022357,2]
[328947584,1718025050377,-521.35,0.00022357,2]
[328947585,1718025050387,-500.0,0.00022357,2]
[328947586,1718025050397,-500.0,0.00022357,2]
[328947587,1718025050407,-867.75,0.00022359,2]
[328947588,1718025050416,-1600.43,0.00022359,2]
[328947589,1718025050426,-917.7,0.00022359,2]
[328947590,1718025050436,-712.57,0.00022359,2]
[328947591,1718025050446,-500.0,0.00022359,2]
[328947592,1718025050456,-914.39,0.00022359,2]
[328947593,1718025050466,-500.0,0.00022359,2]
[328947594,1718025050476,-500.0,0.00022359,2]
[328947595,1718025050486,-309.36720837,0.00022359,2]
[328947596,1718025050496,-559.18,0.00022359,2]
[328947597,1718025050508,-771.31,0.00022359,2]
[328947598,1718025050518,-1360.27,0.00022359,2]
[328947599,1718025050527,-2043.67,0.00022359,2]
[328947600,1718025050537,-962.4,0.00022359,2]
[328947601,1718025050548,-500.0,0.00022359,2]
[328947602,1718025050558,-500.0,0.00022359,2]
[328947603,1718025050568,-2294.87,0.00022359,2]
[328947604,1718025050577,-722.1,0.00022359,2]
[328947605,1718025050587,-500.0,0.00022361,2]
[328947606,1718025050598,-520.41,0.00022361,2]
[328947607,1718025050607,-500.0,0.00022361,2]
[328947608,1718025050617,-200.0,0.00022361,2]
[328947609,1718025050628,-500.0,0.00022361,2]
[328947610,1718025050638,-556.01,0.00022361,2]
[328947611,1718025050647,-500.0,0.00022361,2]
[328947612,1718025050657,-500.0,0.00022361,2]
[328947613,1718025050667,-542.45,0.00022361,2]
[328947614,1718025050677,-500.0,0.00022361,2]
[328947615,1718025050687,-937.86,0.00022361,2]
[328947616,1718025050697,-500.0,0.00022361,2]
[328947617,1718025050707,-652.98,0.00022361,2]
[328947618,1718025050717,-826.99,0.00022361,2]
[328947619,1718025050727,-500.0,0.00022361,2]
[328947620,1718025050737,-500.0,0.00022361,2]
[328947621,1718025050747,-1276.79,0.00022361,2]
[328947622,1718025050756,-596.13,0.00022361,2]
[328947623,1718025050766,-500.0,0.00022361,2]
[328947624,1718025050776,-224.9877186,0.00022361,2]
[328947625,1718025050786,-500.0,0.00022361,2]
[328947626,1718025050796,-500.0,0.00022361,2]
[328947627,1718025050805,-1256.86,0.00022361,2]
[328947628,1718025050815,-500.0,0.00022361,2]
[328947629,1718025050825,-500.0,0.00022361,2]
[328947630,1718025050835,-1506.86,0.00022361,2]
[328947631,1718025050846,-500.0,0.00022361,2]
[328947632,1718025050855,-500.0,0.00022361,2]
[328947633,1718025050865,-1081.24,0.00022361,2]
[328947634,1718025050875,-500.0,0.00022361,2]
[328947635,1718025050884,-405.25976823,0.00022361,2]
[328947636,1718025050894,-778.16,0.00022361,2]
[328947637,1718025050904,-861.76,0.00022361,2]
[328947638,1718025050915,-578.34,0.00022361,2]
[328947639,1718025050925,-500.0,0.00022361,2]
[328947640,1718025050935,-500.0,0.00022361,2]
[328947641,1718025050945,-500.0,0.00022361,2]
[328947642,1718025050955,-500.0,0.00022361,2]
[328947643,1718025050964,-500.0,0.00022361,2]
[328947644,1718025050975,-1906.18,0.00022361,2]
[328947645,1718025050984,-538.62,0.00022361,2]
[328947646,1718025050996,-500.0,0.00022361,2]
[328947647,1718025051006,-500.0,0.00022361,2]
[328947648,1718025051016,-500.0,0.00022361,2]
[328947649,1718025051026,-588.47,0.00022361,2]
[328947650,1718025051036,-1419.7,0.00022361,2]
[328947651,1718025051045,-2539.43,0.00022361,2]
[328947652,1718025051056,-500.0,0.00022361,2]
[328947653,1718025051066,-519.59,0.00022361,2]
[328947654,1718025051076,-500.0,0.00022361,2]
[328947655,1718025051086,-517.07,0.00022362,2]
[328947656,1718025051097,-500.0,0.00022362,2]
[328947657,1718025051107,-647.77,0.00022362,2]
[328947658,1718025051116,-500.0,0.00022362,2]
[328947659,1718025051126,-500.0,0.00022362,2]
[328947660,1718025051136,-653.31,0.00022362,2]
[328947661,1718025051146,-602.64,0.00022362,2]
[328947662,1718025051156,-500.0,0.00022362,2]
[328947663,1718025051167,-500.0,0.00022363,2]
[328947664,1718025051176,-166.666666,0.00022431,2]
[328947665,1718025051186,-1223.09,0.00022631,2]
[328947666,1718025051196,-1871.62,0.00022631,2]
[328947667,1718025051206,-1313.82,0.00022631,2]
[328947668,1718025051216,-521.35,0.00022631,2]
[328947669,1718025051226,-500.0,0.00022631,2]
[328947670,1718025051236,-867.75,0.00022633,2]
[328947671,1718025051246,-1600.43,0.00022633,2]
[328947672,1718025051256,-917.7,0.00022633,2]
[328947673,1718025051266,-712.57,0.00022633,2]
[328947674,1718025051280,-500.0,0.00022633,2]
[328947675,1718025051290,-914.39,0.00022633,2]
[328947676,1718025051300,-500.0,0.00022633,2]
[328947677,1718025051314,-515.29911687,0.00022633,2]
[328947678,1718025051323,-559.18,0.00022633,2]
[328947679,1718025051333,-771.31,0.00022633,2]
[328947680,1718025051345,-1360.27,0.00022633,2]
[328947681,1718025051356,-2043.67,0.00022633,2]
[328947682,1718025051366,-962.4,0.00022633,2]
[328947683,1718025051376,-500.0,0.00022633,2]
[328947684,1718025051387,-500.0,0.00022633,2]
[328947685,1718025051396,-2294.87,0.00022633,2]
[328947686,1718025051407,-722.1,0.00022633,2]
[328947687,1718025051416,-500.0,0.00022635,2]
[328947688,1718025051426,-520.41,0.00022635,2]
[328947689,1718025051436,-500.0,0.00022635,2]
[328947690,1718025051446,-200.0,0.00022635,2]
[328947691,1718025051456,-500.0,0.00022635,2]
[328947692,1718025051466,-556.01,0.00022635,2]
[328947693,1718025051476,-500.0,0.00022635,2]
[328947694,1718025051486,-286.24853813,0.00022635,2]
[328947695,1718025051496,-542.45,0.00022635,2]
[328947696,1718025051506,-500.0,0.00022635,2]
[328947697,1718025051515,-937.86,0.00022635,2]
[328947698,1718025051526,-500.0,0.00022635,2]
[328947699,1718025051535,-652.98,0.00022635,2]
[328947700,1718025051545,-826.99,0.00022635,2]
[328947701,1718025051555,-500.0,0.00022635,2]
[328947702,1718025051565,-500.0,0.00022635,2]
[328947703,1718025051574,-1276.79,0.00022635,2]
[328947704,1718025051585,-596.13,0.00022635,2]
[328947705,1718025051595,-500.0,0.00022635,2]
[328947706,1718025051606,-500.0,0.00022635,2]
[328947707,1718025051617,-500.0,0.00022635,2]
[328947708,1718025051627,-1256.86,0.00022635,2]
[328947709,1718025051637,-500.0,0.00022635,2]
[328947710,1718025051647,-500.0,0.00022635,2]
[328947711,1718025051657,-1506.86,0.00022635,2]
[328947712,1718025051666,-500.0,0.00022635,2]
[328947713,1718025051676,-500.0,0.00022635,2]
[328947714,1718025051686,-1081.24,0.00022635,2]
[328947715,1718025051696,-500.0,0.00022635,2]
[328947716,1718025051706,-778.16,0.00022635,2]
[328947717,1718025051715,-861.76,0.00022635,2]
[328947718,1718025051725,-578.34,0.00022635,2]
[328947719,1718025051736,-500.0,0.00022635,2]
[328947720,1718025051745,-500.0,0.00022635,2]
[328947721,1718025051755,-500.0,0.00022635,2]
[328947722,1718025051834,-500.0,0.00022635,2]
[328947723,1718025051845,-500.0,0.00022635,2]
[328947724,1718025051856,-1906.18,0.00022635,2]
[328947725,1718025051866,-538.62,0.00022635,2]
[328947726,1718025051876,-500.0,0.00022635,2]
[328947727,1718025051887,-500.0,0.00022635,2]
[328947728,1718025051897,-500.0,0.00022635,2]
[328947729,1718025051908,-588.47,0.00022635,2]
[328947730,1718025051918,-1419.7,0.00022635,2]
[328947731,1718025051929,-2539.43,0.00022635,2]
[328947732,1718025051939,-464.43241486,0.00022635,2]
[328947733,1718025051949,-519.59,0.00022635,2]
[328947734,1718025051959,-500.0,0.00022635,2]
[328947735,1718025051969,-517.07,0.00022636,2]
[328947736,1718025051979,-437.18545214,0.00022636,2]
[328947737,1718025051989,-647.77,0.00022636,2]
[328947738,1718025051999,-500.0,0.00022636,2]
[328947739,1718025052009,-500.0,0.00022636,2]
[328947740,1718025052019,-653.31,0.00022636,2]
[328947741,1718025052030,-602.64,0.00022636,2]
[328947742,1718025052040,-500.0,0.00022636,2]
[328947743,1718025052050,-500.0,0.00022637,2]
[328947744,1718025052060,-169.352306,0.00022849,2]
[328947745,1718025052070,-169.352305,0.00022849,2]
[328947746,1718025052080,-1223.09,0.00022905,2]
[328947747,1718025052091,-1871.62,0.00022905,2]
[328947748,1718025052102,-1313.82,0.00022905,2]
[328947749,1718025052112,-521.35,0.00022905,2]
[328947750,1718025052123,-500.0,0.00022905,2]
[328947751,1718025052133,-867.75,0.00022907,2]
[328947752,1718025052143,-1600.43,0.00022907,2]
[328947753,1718025052153,-917.7,0.00022907,2]
[328947754,1718025052164,-712.57,0.00022907,2]
[328947755,1718025052174,-500.0,0.00022907,2]
[328947756,1718025052184,-914.39,0.00022907,2]
[328947757,1718025052194,-500.0,0.00022907,2]
[328947758,1718025052204,-559.18,0.00022907,2]
[328947759,1718025052214,-771.31,0.00022907,2]
[328947760,1718025052224,-1360.27,0.00022907,2]
[328947761,1718025052235,-2043.67,0.00022907,2]
[328947762,1718025052245,-962.4,0.00022907,2]
[328947763,1718025052255,-500.0,0.00022907,2]
[328947764,1718025052266,-500.0,0.00022907,2]
[328947765,1718025052280,-2294.87,0.00022907,2]
[328947766,1718025052290,-722.1,0.00022907,2]
[328947767,1718025052300,-202.65114344,0.00022909,2]
[328947768,1718025052311,-520.41,0.00022909,2]
[328947769,1718025052320,-500.0,0.00022909,2]
[328947770,1718025052330,-500.0,0.00022909,2]
[328947771,1718025052341,-200.0,0.00022909,2]
[328947772,1718025052353,-556.01,0.00022909,2]
[328947773,1718025052363,-500.0,0.00022909,2]
[328947774,1718025052373,-542.45,0.00022909,2]
[328947775,1718025052382,-211.6276484,0.00022909,2]
[328947776,1718025052393,-937.86,0.00022909,2]
[328947777,1718025052403,-500.0,0.00022909,2]
[328947778,1718025052413,-652.98,0.00022909,2]
[328947779,1718025052423,-826.99,0.00022909,2]
[328947780,1718025052433,-500.0,0.00022909,2]
[328947781,1718025052443,-647.8045616,0.00022909,2]
[328947782,1718025052453,-1276.79,0.00022909,2]
[328947783,1718025052463,-596.13,0.00022909,2]
[328947784,1718025052472,-300.85688295,0.00022909,2]
[328947785,1718025052482,-479.95445496,0.00022909,2]
[328947786,1718025052492,-500.0,0.00022909,2]
[328947787,1718025052502,-1256.86,0.00022909,2]
[328947788,1718025052512,-500.0,0.00022909,2]
[328947789,1718025052522,-500.0,0.00022909,2]
[328947790,1718025052531,-1506.86,0.00022909,2]
[328947791,1718025052541,-500.0,0.00022909,2]
[328947792,1718025052550,-500.0,0.00022909,2]
[328947793,1718025052560,-1081.24,0.00022909,2]
[328947794,1718025052570,-636.88261773,0.00022909,2]
[328947795,1718025052579,-778.16,0.00022909,2]
[328947796,1718025052589,-861.76,0.00022909,2]
[328947797,1718025052598,-578.34,0.00022909,2]
[328947798,1718025052608,-500.0,0.00022909,2]
[328947799,1718025052618,-500.0,0.00022909,2]
[328947800,1718025052628,-457.77543426,0.00022909,2]
[328947801,1718025052639,-500.0,0.00022909,2]
[328947802,1718025052649,-500.0,0.00022909,2]
[328947803,1718025052659,-1906.18,0.00022909,2]
[328947804,1718025052668,-538.62,0.00022909,2]
[328947805,1718025052678,-500.0,0.00022909,2]
[328947806,1718025052687,-500.0,0.00022909,2]
[328947807,1718025052699,-500.0,0.00022909,2]
[328947808,1718025052709,-588.47,0.00022909,2]
[328947809,1718025052719,-1419.7,0.00022909,2]
[328947810,1718025052729,-2539.43,0.00022909,2]
[328947811,1718025052740,-519.59,0.00022909,2]
[328947812,1718025052750,-500.0,0.00022909,2]
[328947813,1718025052760,-517.07,0.0002291,2]
[328947814,1718025052770,-647.77,0.0002291,2]
[328947815,1718025052780,-500.0,0.0002291,2]
[328947816,1718025052791,-367.25975444,0.0002291,2]
[328947817,1718025052801,-653.31,0.0002291,2]
[328947818,1718025052810,-602.64,0.0002291,2]
[328947819,1718025052820,-500.0,0.0002291,2]
[328947820,1718025052830,-500.0,0.00022911,2]
[328947821,1718025052840,-166.666666,0.00022944,2]
[328947822,1718025052850,-207.16914811,0.00023,2]
[328947823,1718025052860,-5039.13711336,0.00023,2]
[328947824,1718025052870,-155.01395126,0.00023,2]
[328947825,1718025052880,-100000.0,0.00023,2]
[328947826,1718025052890,-620.00008974,0.00023084,2]
[328947827,1718025052899,-1223.09,0.00023179,2]
[328947828,1718025052910,-1871.62,0.00023179,2]
[328947829,1718025052920,-1313.82,0.00023179,2]
[328947830,1718025052930,-521.35,0.00023179,2]
[328947831,1718025052941,-500.0,0.00023179,2]
[328947832,1718025052952,-867.75,0.00023181,2]
[328947833,1718025052962,-1600.43,0.00023181,2]
[328947834,1718025052972,-917.7,0.00023181,2]
[328947835,1718025052983,-712.57,0.00023181,2]
[328947836,1718025052993,-500.0,0.00023181,2]
[328947837,1718025053003,-914.39,0.00023181,2]
[328947838,1718025053013,-500.0,0.00023181,2]
[328947839,1718025053023,-559.18,0.00023181,2]
[328947840,1718025053033,-771.31,0.00023181,2]
[328947841,1718025053042,-1360.27,0.00023181,2]
[328947842,1718025053053,-2043.67,0.00023181,2]
[328947843,1718025053063,-962.4,0.00023181,2]
[328947844,1718025053074,-500.0,0.00023181,2]
[328947845,1718025053084,-500.0,0.00023181,2]
[328947846,1718025053094,-2294.87,0.00023181,2]
[328947847,1718025053104,-722.1,0.00023181,2]
[328947848,1718025053114,-520.41,0.00023183,2]
[328947849,1718025053124,-500.0,0.00023183,2]
[328947850,1718025053133,-605.69292413,0.00023183,2]
[328947851,1718025053143,-200.0,0.00023183,2]
[328947852,1718025053152,-556.01,0.00023183,2]
[328947853,1718025053163,-500.0,0.00023183,2]
[328947854,1718025053172,-542.45,0.00023183,2]
[328947855,1718025053182,-937.86,0.00023183,2]
[328947856,1718025053193,-500.0,0.00023183,2]
[328947857,1718025053202,-652.98,0.00023183,2]
[328947858,1718025053212,-826.99,0.00023183,2]
[328947859,1718025053222,-500.0,0.00023183,2]
[328947860,1718025053232,-1276.79,0.00023183,2]
[328947861,1718025053242,-596.13,0.00023183,2]
[328947862,1718025053251,-500.0,0.00023183,2]
[328947863,1718025053261,-1256.86,0.00023183,2]
[328947864,1718025053274,-332.93429418,0.00023183,2]
[328947865,1718025053284,-500.0,0.00023183,2]
[328947866,1718025053294,-1506.86,0.00023183,2]
[328947867,1718025053304,-500.0,0.00023183,2]
[328947868,1718025053316,-500.0,0.00023183,2]
[328947869,1718025053326,-1081.24,0.00023183,2]
[328947870,1718025053336,-778.16,0.00023183,2]
[328947871,1718025053348,-861.76,0.00023183,2]
[328947872,1718025053359,-578.34,0.00023183,2]
[328947873,1718025053369,-500.0,0.00023183,2]
[328947874,1718025053379,-500.0,0.00023183,2]
[328947875,1718025053389,-200.49242232,0.00023183,2]
[328947876,1718025053399,-500.0,0.00023183,2]
[328947877,1718025053409,-1906.18,0.00023183,2]
[328947878,1718025053419,-538.62,0.00023183,2]
[328947879,1718025053429,-500.0,0.00023183,2]
[328947880,1718025053504,-500.0,0.00023183,2]
[328947881,1718025053516,-500.0,0.00023183,2]
[328947882,1718025053527,-588.47,0.00023183,2]
[328947883,1718025053538,-1419.7,0.00023183,2]
[328947884,1718025053548,-2539.43,0.00023183,2]
[328947885,1718025053558,-519.59,0.00023183,2]
[328947886,1718025053569,-500.0,0.00023183,2]
[328947887,1718025053580,-517.07,0.00023184,2]
[328947888,1718025053592,-647.77,0.00023184,2]
[328947889,1718025053601,-500.0,0.00023184,2]
[328947890,1718025053611,-653.31,0.00023184,2]
[328947891,1718025053621,-602.64,0.00023184,2]
[328947892,1718025053630,-500.0,0.00023184,2]
[328947893,1718025053640,-500.0,0.00023185,2]
[328947894,1718025053651,-160.0,0.000232,2]
[328947895,1718025053661,-620.0359796,0.00023378,2]
[328947896,1718025053671,-1223.09,0.00023453,2]
[328947897,1718025053683,-1871.62,0.00023453,2]
[328947898,1718025053693,-1313.82,0.00023453,2]
[328947899,1718025053703,-521.35,0.00023453,2]
[328947900,1718025053714,-500.0,0.00023453,2]
[328947901,1718025053723,-867.75,0.00023455,2]
[328947902,1718025053733,-1600.43,0.00023455,2]
[328947903,1718025053742,-917.7,0.00023455,2]
[328947904,1718025053753,-712.57,0.00023455,2]
[328947905,1718025053763,-500.0,0.00023455,2]
[328947906,1718025053773,-914.39,0.00023455,2]
[328947907,1718025053783,-500.0,0.00023455,2]
[328947908,1718025053793,-559.18,0.00023455,2]
[328947909,1718025053803,-771.31,0.00023455,2]
[328947910,1718025053813,-1360.27,0.00023455,2]
[328947911,1718025053822,-2043.67,0.00023455,2]
[328947912,1718025053833,-962.4,0.00023455,2]
[328947913,1718025053843,-500.0,0.00023455,2]
[328947914,1718025053853,-500.0,0.00023455,2]
[328947915,1718025053863,-2294.87,0.00023455,2]
[328947916,1718025053872,-722.1,0.00023455,2]
[328947917,1718025053882,-166.666666,0.00023456,2]
[328947918,1718025053892,-520.41,0.00023457,2]
[328947919,1718025053902,-500.0,0.00023457,2]
[328947920,1718025053912,-200.0,0.00023457,2]
[328947921,1718025053922,-556.01,0.00023457,2]
[328947922,1718025053932,-500.0,0.00023457,2]
[328947923,1718025053942,-542.45,0.00023457,2]
[328947924,1718025053952,-937.86,0.00023457,2]
[328947925,1718025053963,-624.98529054,0.00023457,2]
[328947926,1718025053973,-652.98,0.00023457,2]
[328947927,1718025053984,-826.99,0.00023457,2]
[328947928,1718025053994,-443.12862648,0.00023457,2]
[328947929,1718025054004,-1276.79,0.00023457,2]
[328947930,1718025054014,-596.13,0.00023457,2]
[328947931,1718025054024,-500.0,0.00023457,2]
[328947932,1718025054034,-1256.86,0.00023457,2]
[328947933,1718025054044,-500.0,0.00023457,2]
[328947934,1718025054054,-1506.86,0.00023457,2]
[328947935,1718025054065,-500.0,0.00023457,2]
[328947936,1718025054075,-500.0,0.00023457,2]
[328947937,1718025054086,-1081.24,0.00023457,2]
[328947938,1718025054097,-778.16,0.00023457,2]
[328947939,1718025054107,-861.76,0.00023457,2]
[328947940,1718025054118,-578.34,0.00023457,2]
[328947941,1718025054128,-500.0,0.00023457,2]
[328947942,1718025054139,-500.0,0.00023457,2]
[328947943,1718025054149,-500.0,0.00023457,2]
[328947944,1718025054160,-1906.18,0.00023457,2]
[328947945,1718025054170,-538.62,0.00023457,2]
[328947946,1718025054180,-212.20137374,0.00023457,2]
[328947947,1718025054191,-500.0,0.00023457,2]
[328947948,1718025054201,-500.0,0.00023457,2]
[328947949,1718025054212,-588.47,0.00023457,2]
[328947950,1718025054222,-1419.7,0.00023457,2]
[328947951,1718025054233,-2539.43,0.00023457,2]
[328947952,1718025054243,-519.59,0.00023457,2]
[328947953,1718025054253,-500.0,0.00023457,2]
[328947954,1718025054264,-517.07,0.00023458,2]
[328947955,1718025054277,-647.77,0.00023458,2]
[328947956,1718025054288,-500.0,0.00023458,2]
[328947957,1718025054297,-653.31,0.00023458,2]
[328947958,1718025054308,-602.64,0.00023458,2]
[328947959,1718025054319,-500.0,0.00023458,2]
[328947960,1718025054329,-500.0,0.00023459,2]
[328947961,1718025054339,-587.0,0.00023587,2]
[328947962,1718025054354,-1223.09,0.00023727,2]
[328947963,1718025054364,-1871.62,0.00023727,2]
[328947964,1718025054374,-1313.82,0.00023727,2]
[328947965,1718025054384,-521.35,0.00023727,2]
[328947966,1718025054395,-500.0,0.00023727,2]
[328947967,1718025054405,-867.75,0.00023729,2]
[328947968,1718025054415,-1600.43,0.00023729,2]
[328947969,1718025054426,-917.7,0.00023729,2]
[328947970,1718025054436,-712.57,0.00023729,2]
[328947971,1718025054446,-500.0,0.00023729,2]
[328947972,1718025054456,-914.39,0.00023729,2]
[328947973,1718025054466,-316.70390316,0.00023729,2]
[328947974,1718025054476,-559.18,0.00023729,2]
[328947975,1718025054486,-771.31,0.00023729,2]
[328947976,1718025054496,-1360.27,0.00023729,2]
[328947977,1718025054506,-2043.67,0.00023729,2]
[328947978,1718025054517,-962.4,0.00023729,2]
[328947979,1718025054527,-500.0,0.00023729,2]
[328947980,1718025054538,-500.0,0.00023729,2]
[328947981,1718025054548,-2294.87,0.00023729,2]
[328947982,1718025054558,-722.1,0.00023729,2]
[328947983,1718025054568,-520.41,0.00023731,2]
[328947984,1718025054578,-500.0,0.00023731,2]
[328947985,1718025054588,-197.68218359,0.00023731,2]
[328947986,1718025054599,-556.01,0.00023731,2]
[328947987,1718025054610,-500.0,0.00023731,2]
[328947988,1718025054622,-542.45,0.00023731,2]
[328947989,1718025054633,-937.86,0.00023731,2]
[328947990,1718025054644,-652.98,0.00023731,2]
[328947991,1718025054655,-826.99,0.00023731,2]
[328947992,1718025054665,-1276.79,0.00023731,2]
[328947993,1718025054675,-596.13,0.00023731,2]
[328947994,1718025054685,-500.0,0.00023731,2]
[328947995,1718025054695,-1256.86,0.00023731,2]
[328947996,1718025054706,-500.0,0.00023731,2]
[328947997,1718025054716,-1506.86,0.00023731,2]
[328947998,1718025054726,-500.0,0.00023731,2]
[328947999,1718025054736,-500.0,0.00023731,2]
[328948000,1718025054747,-1081.24,0.00023731,2]
[328948001,1718025054757,-778.16,0.00023731,2]
[328948002,1718025054769,-861.76,0.00023731,2]
[328948003,1718025054780,-578.34,0.00023731,2]
[328948004,1718025054790,-500.0,0.00023731,2]
[328948005,1718025054801,-500.0,0.00023731,2]
[328948006,1718025054811,-500.0,0.00023731,2]
[328948007,1718025054821,-1906.18,0.00023731,2]
[328948008,1718025054831,-538.62,0.00023731,2]
[328948009,1718025054843,-500.0,0.00023731,2]
[328948010,1718025054853,-500.0,0.00023731,2]
[328948011,1718025054865,-588.47,0.00023731,2]
[328948012,1718025054875,-1419.7,0.00023731,2]
[328948013,1718025054885,-2539.43,0.00023731,2]
[328948014,1718025054895,-519.59,0.00023731,2]
[328948015,1718025054906,-172.09685962,0.00023731,2]
[328948016,1718025054916,-517.07,0.00023732,2]
[328948017,1718025054926,-647.77,0.00023732,2]
[328948018,1718025054935,-500.0,0.00023732,2]
[328948019,1718025054946,-653.31,0.00023732,2]
[328948020,1718025054957,-602.64,0.00023732,2]
[328948021,1718025054968,-500.0,0.00023732,2]
[328948022,1718025054977,-500.0,0.00023733,2]
[328948023,1718025054989,-320.0,0.00023748,2]
[328948024,1718025054999,-166.666666,0.00023808,2]
[328948025,1718025055076,-166.666666,0.00023969,2]
[328948026,1718025055088,-31889.44500545,0.00024,2]
[328948027,1718025055103,-1223.09,0.00024001,2]
[328948028,1718025055114,-1871.62,0.00024001,2]
[328948029,1718025055124,-1313.82,0.00024001,2]
[328948030,1718025055134,-521.35,0.00024001,2]
[328948031,1718025055144,-500.0,0.00024001,2]
[328948032,1718025055154,-867.75,0.00024003,2]
[328948033,1718025055165,-1600.43,0.00024003,2]
[328948034,1718025055174,-917.7,0.00024003,2]
[328948035,1718025055185,-712.57,0.00024003,2]
[328948036,1718025055195,-500.0,0.00024003,2]
[328948037,1718025055204,-914.39,0.00024003,2]
[328948038,1718025055214,-559.18,0.00024003,2]
[328948039,1718025055223,-771.31,0.00024003,2]
[328948040,1718025055233,-1360.27,0.00024003,2]
[328948041,1718025055243,-2043.67,0.00024003,2]
[328948042,1718025055253,-962.4,0.00024003,2]
[328948043,1718025055264,-361.17132614,0.00024003,2]
[328948044,1718025055278,-500.0,0.00024003,2]
[328948045,1718025055288,-2294.87,0.00024003,2]
[328948046,1718025055298,-722.1,0.00024003,2]
[328948047,1718025055308,-520.41,0.00024005,2]
[328948048,1718025055319,-565.51744872,0.00024005,2]
[328948049,1718025055328,-556.01,0.00024005,2]
[328948050,1718025055338,-500.0,0.00024005,2]
[328948051,1718025055349,-542.45,0.00024005,2]
[328948052,1718025055361,-937.86,0.00024005,2]
[328948053,1718025055372,-652.98,0.00024005,2]
[328948054,1718025055382,-826.99,0.00024005,2]
[328948055,1718025055392,-1276.79,0.00024005,2]
[328948056,1718025055401,-596.13,0.00024005,2]
[328948057,1718025055412,-500.0,0.00024005,2]
[328948058,1718025055422,-1256.86,0.00024005,2]
[328948059,1718025055432,-500.0,0.00024005,2]
[328948060,1718025055442,-1506.86,0.00024005,2]
[328948061,1718025055452,-500.0,0.00024005,2]
[328948062,1718025055463,-500.0,0.00024005,2]
[328948063,1718025055473,-1081.24,0.00024005,2]
[328948064,1718025055484,-778.16,0.00024005,2]
[328948065,1718025055495,-861.76,0.00024005,2]
[328948066,1718025055506,-578.34,0.00024005,2]
[328948067,1718025055516,-500.0,0.00024005,2]
[328948068,1718025055526,-500.0,0.00024005,2]
[328948069,1718025055536,-500.0,0.00024005,2]
[328948070,1718025055546,-1906.18,0.00024005,2]